fUST/lending_fUST_20250502
["ID","MTS","AMOUNT","RATE_DAILY","PERIOD"]
[359586861,1746159721209,-423.49001632,0.00019568,2]
[359586862,1746159721231,-455.17791691,0.00019569,3]
[359586863,1746159721254,-3922.44750444,0.00019569,2]
[359586972,1746160238542,-611.38400069,0.00018569,2]
[359587090,1746160243646,-2811.29365223,0.00018569,2]
[359587092,1746160246744,-42.14783402,0.00018569,2]
[359587093,1746160246761,-263.67604746,0.00018569,2]
[359587094,1746160246771,-185.058118,0.00019178,2]
[359587095,1746160246781,-1109.60862052,0.00019469,2]
[359587096,1746160246791,-300.0,0.00019554,2]
[359587097,1746160246801,-4465.00619238,0.00019555,2]
[359587282,1746161438628,-262.390553,0.00018115,2]
[359587283,1746161438638,-28.82617018,0.00018455,2]
[359587390,1746161441116,-271.17382982,0.00018455,2]
[359587391,1746161441127,-127.82617018,0.00018456,2]
[359587424,1746161446616,-172.17382982,0.00018456,2]
[359587425,1746161446626,-300.0,0.00018456,2]
[359587426,1746161446635,-300.0,0.00018456,2]
[359587427,1746161446645,-300.0,0.00018456,2]
[359587428,1746161446654,-1200.0,0.00018456,2]
[359587429,1746161446664,-500.0,0.00018457,2]
[359587430,1746161446673,-500.0,0.00018457,2]
[359587431,1746161446682,-500.0,0.00018457,2]
[359587432,1746161446692,-224.37952082,0.00018457,2]
[359587433,1746161446712,-254.13987057,0.00018457,2]
[359587448,1746161581295,-270.54981299,0.00018206,2]
[359587468,1746162033903,262.3905546,0.00018041,2]
[359587476,1746162287652,227.81398383,0.00018097,2]
[359587492,1746162442727,386.161233,0.00025,30]
[359587504,1746162631827,-260.79990644,0.00018101,2]
[359587506,1746162631837,-910.90395562,0.000182,2]
[359587507,1746162631848,-300.0,0.00018201,2]
[359587509,1746162631857,-324.3897,0.00018202,2]
[359587510,1746162631867,-577.75343338,0.00018202,2]
[359587511,1746162631877,-500.0,0.00018202,2]
[359587512,1746162631886,-309.50798866,0.00018202,2]
[359587513,1746162631895,-500.0,0.00018202,2]
[359587514,1746162631905,-500.0,0.00018202,2]
[359587516,1746162631914,-500.0,0.00018202,2]
[359587518,1746162631923,-500.0,0.00018202,2]
[359587520,1746162631932,-500.0,0.00018202,2]
[359587522,1746162631942,-500.0,0.00018202,2]
[359587524,1746162631951,-500.0,0.00018202,2]
[359587526,1746162631960,-500.0,0.00018202,2]
[359587527,1746162631969,-446.36965429,0.00018202,2]
[359587528,1746162631978,-500.0,0.00018202,2]
[359587529,1746162631987,-50000.0,0.00018203,2]
[359587530,1746162631996,-15329.69879034,0.00018206,2]
[359587613,1746162642960,-259.02538806,0.00018206,2]
[359587614,1746162642973,-2285.44093311,0.00018206,2]
[359587656,1746162697714,-302.0,0.00018146,2]
[359587657,1746162705099,-200.82209684,0.00018102,2]
[359587658,1746162712114,-59.97780959,0.00018102,2]
[359587659,1746162712138,-140.84428725,0.00018146,2]
[359587660,1746162721309,-457.32066196,0.00018146,2]
[359587661,1746162725532,-250.0,0.00018146,2]
[359587663,1746162733484,-607.64971638,0.00018146,2]
[359587664,1746162741384,-97.06863721,0.00018146,2]
[359587666,1746162776550,-151.0,0.00018106,2]
[359587667,1746162780569,-173.47566652,0.00018106,2]
[359587668,1746162785407,-359.38719697,0.00018106,2]
[359587669,1746162808014,250.0,0.00018006,2]
[359587670,1746162905487,187.59581902,0.00018,2]
[359587680,1746163028591,191.32082638,0.000181,2]
[359587683,1746163157655,227.81398384,0.00018087,2]
[359587698,1746163717474,670.36541936,0.0001,7]
[359587705,1746163832083,-893.6,0.00018181,2]
[359587882,1746163846193,-1391.8409331,0.00018181,2]
[359587883,1746163846202,-160.83610019,0.00018821,2]
[359587884,1746163846212,-204.18018573,0.00018921,2]
[359587885,1746163846224,-5000.0,0.00019008,2]
[359587886,1746163846235,-324.28163738,0.00019172,2]
[359587887,1746163846246,-500.0,0.00019172,2]
[359587888,1746163846256,-500.0,0.00019172,2]
[359587889,1746163846266,-500.0,0.00019172,2]
[359587890,1746163846276,-500.0,0.00019172,2]
[359587891,1746163846285,-500.0,0.00019172,2]
[359587892,1746163846295,-500.0,0.00019172,2]
[359587893,1746163846305,-500.0,0.00019172,2]
[359587894,1746163846315,-443.21446285,0.00019172,2]
[359587895,1746163846324,-500.0,0.00019172,2]
[359587896,1746163846335,-500.0,0.00019172,2]
[359587897,1746163846344,-1512.37829806,0.00019173,2]
[359587898,1746163846354,-186.451885,0.00019178,2]
[359587899,1746163846363,-300.0,0.00019179,2]
[359587900,1746163846373,-1512.37829805,0.0001918,2]
[359587901,1746163846383,-404.42740336,0.00019184,2]
[359587902,1746163846392,-227.07279,0.00019184,2]
[359587903,1746163846401,-18627.56731962,0.00019185,2]
[359587906,1746164230258,492.0,0.00025,30]
[359587962,1746165032250,-204.357469,0.00018192,2]
[359587963,1746165032261,-3335.0391115,0.000182,2]
[359587964,1746165032270,-314.64889956,0.00018924,2]
[359587965,1746165032280,-154.79397299,0.00019,6]
[359587966,1746165032289,-1209.0475519,0.00019032,2]
[359587967,1746165032299,-300.0,0.00019119,2]
[359587968,1746165032308,-300.0,0.00019119,2]
[359587969,1746165032317,-493.69049587,0.00019119,2]
[359587970,1746165032326,-169.33367365,0.00019119,2]
[359587972,1746165032335,-283.09918235,0.00019119,2]
[359587974,1746165032344,-158.950953,0.00019119,2]
[359587976,1746165032353,-13365.48057912,0.0001912,2]
[359587978,1746165032362,-7037.42,0.0001912,3]
[359587980,1746165032371,-1276.16131628,0.0001912,3]
[359588142,1746165042697,741.0,0.00020768,15]
[359588156,1746165046199,-2242.54868372,0.0001912,3]
[359588157,1746165046212,-1172.9,0.0001912,3]
[359588160,1746165046224,-586.45,0.0001912,3]
[359588168,1746165046533,-293.23,0.0001912,3]
[359588169,1746165046544,-879.71,0.0001912,3]
[359588170,1746165046553,-841.31989156,0.0001912,3]
[359588171,1746165046563,-160.0,0.0001912,3]
[359588172,1746165046573,-182.12647014,0.0001912,3]
[359588173,1746165046583,-6773.56589674,0.0001912,3]
[359588175,1746165156694,5000.0,0.00018007,2]
[359588176,1746165319213,-204.35747,0.00018127,2]
[359588177,1746165339102,5000.0,0.00018007,2]
[359588180,1746165698890,2811.2936522,0.00018027,2]
[359588181,1746165763894,-314.64889956,0.00018693,2]
[359588182,1746165763920,-967.23804152,0.00018939,2]
[359588183,1746165763942,-1118.12299008,0.00018946,2]
[359588184,1746165763964,-967.23804151,0.00018979,2]
[359588185,1746165763985,-967.23804151,0.0001902,2]
[359588186,1746165764007,-518.75,0.0001902,3]
[359588187,1746165764028,-300.0,0.00019028,2]
[359588188,1746165764056,-500.0,0.00019028,2]
[359588189,1746165764082,-500.0,0.00019028,2]
[359588190,1746165764107,-500.0,0.00019028,2]
[359588191,1746165764133,-346.76398582,0.00019028,2]
[359588192,1746165907546,160.053727,0.000245,30]
[359588195,1746166146600,160.053727,0.000245,30]
[359588196,1746166147183,160.053727,0.00024248,30]
[359588260,1746166238355,-423.20827702,0.00018701,2]
[359588262,1746166238365,-386.89521662,0.00018973,2]
[359588264,1746166238374,-386.8952166,0.0001899,2]
[359588266,1746166238384,-386.8952166,0.00019006,2]
[359588268,1746166238393,-300.0,0.00019016,2]
[359588270,1746166238401,-300.0,0.00019016,2]
[359588272,1746166238411,-300.0,0.00019016,2]
[359588274,1746166238420,-1200.0,0.00019016,2]
[359588276,1746166238429,-500.0,0.00019016,2]
[359588278,1746166238439,-500.0,0.00019016,2]
[359588280,1746166238448,-500.0,0.00019016,2]
[359588282,1746166238457,-500.0,0.00019016,2]
[359588284,1746166238466,-55.12695565,0.00019016,2]
[359588287,1746166238478,-444.87304435,0.00019016,2]
[359588289,1746166238487,-189.85564547,0.00019016,2]
[359588291,1746166238498,-310.14435453,0.00019016,2]
[359588293,1746166238508,-470.36397837,0.00019016,2]
[359588396,1746166246731,-1173.45382711,0.0001892,2]
[359588397,1746166246740,-29.63602163,0.00019016,2]
[359588398,1746166246750,-500.0,0.00019016,2]
[359588399,1746166246759,-500.0,0.00019016,2]
[359588400,1746166246769,-500.0,0.00019016,2]
[359588401,1746166246778,-160.26137646,0.00019016,2]
[359588402,1746166246788,-500.0,0.00019016,2]
[359588403,1746166246798,-500.0,0.00019016,2]
[359588404,1746166246807,-500.0,0.00019016,2]
[359588405,1746166246817,-500.0,0.00019016,2]
[359588406,1746166246827,-500.0,0.00019016,2]
[359588407,1746166246837,-217.0566321,0.00019016,2]
[359588408,1746166246851,-282.9433679,0.00019016,2]
[359588409,1746166246860,-2052.0902691,0.0001902,3]
[359588410,1746166359281,286.283637,0.00018015,2]
[359588415,1746166480947,4500.3,0.000181,2]
[359588419,1746166747553,160.053727,0.000245,30]
[359588432,1746167250018,244.1742854,0.00017877,2]
[359588454,1746167432481,-994.96556439,0.000187,2]
[359588455,1746167432491,-385.64358936,0.000188,2]
[359588456,1746167432501,-1230.67409315,0.000188,2]
[359588457,1746167432511,-385.64358932,0.00018868,2]
[359588458,1746167432520,-300.0,0.00018879,2]
[359588459,1746167432530,-300.0,0.00018879,2]
[359588460,1746167432539,-9276.31747227,0.0001888,2]
[359588515,1746167438854,-510.26614351,0.00018789,2]
[359588516,1746167438863,-500.0,0.00018879,2]
[359588517,1746167438872,-331.512974,0.00018879,2]
[359588518,1746167438883,-168.487026,0.00018879,2]
[359588519,1746167438892,-500.0,0.00018879,2]
[359588520,1746167438901,-188.27110642,0.00018879,2]
[359589419,1746167521671,12501.2217671,0.00017885,2]
[359589420,1746167528216,752.609293,0.00017885,2]
[359589452,1746167947168,160.053727,0.00025,30]
[359589548,1746168260961,11413.85490074,0.00018,2]
[359589551,1746168548659,160.053727,0.00025,30]
[359589553,1746168620023,24900.0,0.00017755,2]
[359589569,1746168632713,-423.20827702,0.00018361,2]
[359589570,1746168632723,-231.3861536,0.0001868,2]
[359589572,1746168632733,-1076.83983155,0.0001868,2]
[359589573,1746168632742,-1200.0,0.00018699,2]
[359589574,1746168632751,-500.0,0.00018699,2]
[359589575,1746168632761,-500.0,0.00018699,2]
[359589576,1746168632770,-250.0,0.00018699,2]
[359589577,1746168632780,-500.0,0.00018699,2]
[359589578,1746168632790,-500.0,0.00018699,2]
[359589579,1746168632799,-5375.25558889,0.000187,2]
[359589580,1746168632809,-231.38615359,0.00018732,2]
[359589581,1746168632819,-300.0,0.00018766,2]
[359589582,1746168632829,-151.0,0.0001877,2]
[359589583,1746168632838,-153.287819,0.0001877,2]
[359589584,1746168632848,-151.0,0.0001877,2]
[359589586,1746168632858,-151.0,0.0001877,2]
[359589588,1746168632868,-209.450975,0.0001877,2]
[359589589,1746168632878,-209.450975,0.0001877,2]
[359589591,1746168632888,-209.450975,0.0001877,2]
[359589594,1746168632898,-209.450975,0.0001877,2]
[359589596,1746168632908,-4515.35,0.0001877,3]
[359589598,1746168632917,-2257.68,0.0001877,3]
[359589599,1746168632927,-1128.84,0.0001877,3]
[359589600,1746168632938,-564.42,0.0001877,3]
[359589601,1746168632947,-282.21,0.0001877,3]
[359589602,1746168632957,-846.65,0.0001877,3]
[359589603,1746168632966,-12117.61622066,0.00018777,2]
[359589604,1746168632976,-151.0,0.00018779,2]
[359589605,1746168632987,-151.0,0.00018779,2]
[359589606,1746168632997,-151.0,0.00018779,2]
[359589607,1746168633007,-151.0,0.00018779,2]
[359589608,1746168633017,-240.37269969,0.00018779,2]
[359589609,1746168633027,-354434.67030171,0.0001878,2]
[359589610,1746168633039,-733.29844404,0.0001878,2]
[359589611,1746168633064,-14832.03125425,0.0001878,2]
[359589612,1746168633074,-151.0,0.0001878,2]
[359589613,1746168633085,-263.692346,0.0001878,2]
[359589614,1746168633095,-151.0,0.0001878,2]
[359589615,1746168633105,-151.0,0.0001878,2]
[359589616,1746168633115,-151.0,0.0001878,2]
[359589617,1746168633126,-236.401613,0.0001878,2]
[359589618,1746168633135,-236.401613,0.0001878,2]
[359589619,1746168633145,-151.0,0.0001878,2]
[359589620,1746168633155,-282.493624,0.0001878,2]
[359589621,1746168633165,-282.493624,0.0001878,2]
[359589622,1746168633175,-209.450975,0.0001878,2]
[359589623,1746168633185,-209.450975,0.0001878,2]
[359589624,1746168633195,-231.38615359,0.00018783,2]
[359589625,1746168633205,-152.0,0.00018816,2]
[359589626,1746168633215,-231.38615359,0.00018835,2]
[359589627,1746168633225,-151.0,0.0001887,2]
[359589628,1746168633236,-160.552801,0.0001887,2]
[359589629,1746168633245,-656.866409,0.0001887,2]
[359589630,1746168633255,-160.552801,0.0001887,2]
[359589631,1746168633264,-656.866409,0.0001887,2]
[359589632,1746168633274,-151.0,0.0001887,2]
[359589633,1746168633283,-151.0,0.0001887,2]
[359589634,1746168633293,-151.0,0.0001887,2]
[359589635,1746168633303,-151.0,0.0001887,2]
[359589636,1746168633312,-204.127227,0.0001887,2]
[359589637,1746168633323,-204.127227,0.0001887,2]
[359589638,1746168633332,-204.127227,0.0001887,2]
[359589639,1746168633342,-204.127227,0.0001887,2]
[359589640,1746168633351,-151.0,0.0001887,2]
[359589641,1746168633361,-209.450975,0.0001887,2]
[359589642,1746168633370,-209.450975,0.0001887,2]
[359589643,1746168633380,-506.76132985,0.00018873,2]
[359589644,1746168633389,-527.2230556,0.00018873,2]
[359589645,1746168633399,-500.0,0.00018873,2]
[359589646,1746168633408,-500.0,0.00018873,2]
[359589647,1746168633418,-570.06481311,0.00018873,2]
[359589648,1746168633427,-500.62366515,0.00018873,2]
[359589649,1746168633440,-151.0,0.00018873,2]
[359589650,1746168633449,-270.137973,0.00018873,2]
[359589651,1746168633459,-160.552801,0.00018873,2]
[359589652,1746168633468,-160.552801,0.00018873,2]
[359589653,1746168633478,-656.866409,0.00018873,2]
[359589654,1746168633489,-656.866409,0.00018873,2]
[359589655,1746168633499,-656.866409,0.00018873,2]
[359589656,1746168633510,-160.552801,0.00018873,2]
[359589657,1746168633519,-160.552801,0.00018873,2]
[359589658,1746168633529,-656.866409,0.00018873,2]
[359589659,1746168633539,-656.866409,0.00018873,2]
[359589660,1746168633549,-656.866409,0.00018873,2]
[359589661,1746168633559,-151.0,0.00018873,2]
[359589662,1746168633568,-151.0,0.00018873,2]
[359589663,1746168633577,-151.0,0.00018873,2]
[359589664,1746168633587,-177.076626,0.00018873,2]
[359589665,1746168633596,-151.0,0.00018873,2]
[359589666,1746168633606,-151.0,0.00018873,2]
[359589667,1746168633615,-151.0,0.00018873,2]
[359589668,1746168633625,-151.0,0.00018873,2]
[359589669,1746168633634,-151.0,0.00018873,2]
[359589670,1746168633644,-151.0,0.00018873,2]
[359589671,1746168633654,-151.0,0.00018873,2]
[359589672,1746168633664,-151.0,0.00018873,2]
[359589673,1746168633674,-151.0,0.00018873,2]
[359589674,1746168633683,-204.127227,0.00018873,2]
[359589675,1746168633693,-204.127227,0.00018873,2]
[359589676,1746168633703,-204.127227,0.00018873,2]
[359589677,1746168633713,-204.127227,0.00018873,2]
[359589678,1746168633722,-204.127227,0.00018873,2]
[359589679,1746168633733,-204.127227,0.00018873,2]
[359589680,1746168633743,-151.0,0.00018873,2]
[359589681,1746168633752,-151.0,0.00018873,2]
[359589682,1746168633762,-151.0,0.00018873,2]
[359589683,1746168633771,-151.0,0.00018873,2]
[359589684,1746168633780,-151.0,0.00018873,2]
[359589685,1746168633791,-151.0,0.00018873,2]
[359589686,1746168633801,-271.09434,0.00018873,2]
[359589687,1746168633811,-151.0,0.00018873,2]
[359589688,1746168633821,-151.0,0.00018873,2]
[359589689,1746168633830,-151.0,0.00018873,2]
[359589690,1746168633840,-153.521115,0.00018873,2]
[359589691,1746168633850,-236.401613,0.00018873,2]
[359589692,1746168633859,-236.401613,0.00018873,2]
[359589693,1746168633870,-236.401613,0.00018873,2]
[359589694,1746168633880,-236.401613,0.00018873,2]
[359589695,1746168633890,-236.401613,0.00018873,2]
[359589696,1746168633900,-236.401613,0.00018873,2]
[359589697,1746168633910,-236.401613,0.00018873,2]
[359589698,1746168633920,-236.401613,0.00018873,2]
[359589699,1746168633930,-236.401613,0.00018873,2]
[359589700,1746168633940,-236.401613,0.00018873,2]
[359589701,1746168633950,-151.0,0.00018873,2]
[359589702,1746168633964,-151.0,0.00018873,2]
[359589703,1746168633974,-282.493624,0.00018873,2]
[359589704,1746168633984,-282.493624,0.00018873,2]
[359589705,1746168633994,-282.493624,0.00018873,2]
[359589706,1746168634003,-282.493624,0.00018873,2]
[359589707,1746168634013,-282.493624,0.00018873,2]
[359589708,1746168634023,-282.493624,0.00018873,2]
[359589709,1746168634033,-282.493624,0.00018873,2]
[359589710,1746168634043,-282.493624,0.00018873,2]
[359589711,1746168634053,-282.493624,0.00018873,2]
[359589712,1746168634063,-282.493624,0.00018873,2]
[359589713,1746168634074,-209.450975,0.00018873,2]
[359589714,1746168634084,-209.450975,0.00018873,2]
[359589715,1746168634094,-209.450975,0.00018873,2]
[359589716,1746168634104,-209.450975,0.00018873,2]
[359589717,1746168634114,-151.0,0.00018878,2]
[359589718,1746168634124,-151.0,0.00018878,2]
[359589719,1746168634134,-151.0,0.00018878,2]
[359589720,1746168634144,-1272.67141553,0.00018878,2]
[359590489,1746168646887,-671.50997047,0.00018878,2]
[359590491,1746168646897,-1944.181386,0.00018878,2]
[359590493,1746168646907,-151.0,0.00018878,2]
[359590495,1746168646917,-151.0,0.00018878,2]
[359590497,1746168646927,-151.0,0.00018878,2]
[359590499,1746168646936,-297.728046,0.00018878,2]
[359590501,1746168646946,-209.450975,0.00018878,2]
[359590503,1746168646956,-209.450975,0.00018878,2]
[359590505,1746168646966,-209.450975,0.00018878,2]
[359590507,1746168646975,-209.450975,0.00018878,2]
[359590509,1746168646985,-5287.56616181,0.0001888,2]
[359590511,1746168646998,-2954.3930974,0.0001888,2]
[359590939,1746168683894,376.304646,0.0001783,2]
[359590940,1746168957814,5000.0,0.00017007,2]
[359590987,1746169653172,590.07,0.00025,30]
[359590999,1746169831834,-174.62136341,0.00018569,2]
[359591001,1746169831846,-292.47793658,0.00018569,2]
[359591056,1746169838008,-649.756916,0.00018569,2]
[359591058,1746169838017,-300.0,0.00018649,2]
[359591060,1746169838027,-1074.0,0.00018649,2]
[359591062,1746169838036,-300.0,0.00018649,2]
[359591064,1746169838046,-2916.16,0.0001865,3]
[359591066,1746169838056,-1458.08,0.0001865,3]
[359591068,1746169838065,-729.04,0.0001865,3]
[359591070,1746169838074,-364.52,0.0001865,3]
[359591072,1746169838083,-182.26,0.0001865,3]
[359591074,1746169838093,-546.82,0.0001865,3]
[359591076,1746169838102,-10285.59917844,0.0001866,2]
[359591291,1746169840418,-772.79413623,0.0001866,2]
[359591294,1746169840431,-493.28256153,0.0001866,2]
[359591581,1746169843395,-8748.25860229,0.0001866,2]
[359591945,1746169956089,188.152323,0.00017665,2]
[359591947,1746169964807,13898.2126009,0.0001782,2]
[359591953,1746170226419,5000.0,0.00017007,2]
[359591955,1746170347271,160.053727,0.00025,30]
[359591956,1746170347877,2500.0,0.00025,30]
[359591965,1746170604550,282300.0,0.00025,30]
[359591993,1746170973310,188.152324,0.00017475,2]
[359592017,1746171032023,-250.0,0.00018295,2]
[359592018,1746171032032,-216.53666222,0.00018379,2]
[359592022,1746171032132,-973.47307814,0.00018379,2]
[359592023,1746171032142,-465.13214901,0.00018395,2]
[359592024,1746171032152,-300.0,0.00018469,2]
[359592025,1746171032161,-1200.0,0.00018469,2]
[359592026,1746171032171,-1883.35,0.0001847,3]
[359592027,1746171032181,-941.67,0.0001847,3]
[359592028,1746171032191,-470.84,0.0001847,3]
[359592029,1746171032200,-235.42,0.0001847,3]
[359592030,1746171032210,-706.28,0.0001847,3]
[359592031,1746171032219,-2621.92460385,0.00018476,2]
[359592032,1746171032233,-12342.45615509,0.00018476,2]
[359592033,1746171032244,-997.93257393,0.00018476,2]
[359592034,1746171032253,-168.26088978,0.00018479,2]
[359592035,1746171032261,-1494.17892992,0.0001848,2]
[359592036,1746171032273,-359.3437208,0.0001848,2]
[359592062,1746171038048,-500.0,0.00018474,2]
[359592064,1746171038057,-544.81760942,0.00018474,2]
[359592066,1746171038066,-500.0,0.00018474,2]
[359592068,1746171038075,-500.0,0.00018474,2]
[359592070,1746171038084,-500.0,0.00018474,2]
[359592072,1746171038094,-520.51645461,0.00018474,2]
[359592074,1746171038104,-500.0,0.00018474,2]
[359592076,1746171038113,-500.0,0.00018474,2]
[359592078,1746171038123,-500.0,0.00018474,2]
[359592080,1746171038132,-500.0,0.00018474,2]
[359592082,1746171038141,-500.0,0.00018474,2]
[359592084,1746171038151,-207.65214663,0.00018474,2]
[359592086,1746171038160,-500.0,0.00018474,2]
[359592088,1746171038169,-500.0,0.00018474,2]
[359592090,1746171038179,-500.0,0.00018474,2]
[359592092,1746171038188,-500.0,0.00018474,2]
[359592095,1746171038198,-500.0,0.00018474,2]
[359592098,1746171038207,-500.0,0.00018474,2]
[359592100,1746171038216,-500.0,0.00018474,2]
[359592102,1746171038226,-500.0,0.00018474,2]
[359592104,1746171038238,-500.0,0.00018474,2]
[359592106,1746171038247,-500.0,0.00018474,2]
[359592108,1746171038256,-500.0,0.00018474,2]
[359592110,1746171038265,-500.0,0.00018474,2]
[359592112,1746171038274,-500.0,0.00018474,2]
[359592114,1746171038283,-569.57830336,0.00018474,2]
[359592116,1746171038292,-500.0,0.00018474,2]
[359592118,1746171038302,-165915.21613931,0.0001848,2]
[359592120,1746171038311,-1000.0,0.00018499,2]
[359592122,1746171038320,-1000.0,0.00018499,2]
[359592124,1746171038329,-1000.0,0.00018499,2]
[359592126,1746171038339,-1000.0,0.00018499,2]
[359592128,1746171038349,-1000.0,0.00018499,2]
[359592130,1746171038358,-1000.0,0.00018499,2]
[359592132,1746171038368,-1000.0,0.00018499,2]
[359592134,1746171038377,-1000.0,0.00018499,2]
[359592136,1746171038387,-1000.0,0.00018499,2]
[359592138,1746171038396,-1000.0,0.00018499,2]
[359592140,1746171038406,-1000.0,0.00018499,2]
[359592142,1746171038415,-1000.0,0.00018499,2]
[359592144,1746171038425,-1000.0,0.00018499,2]
[359592146,1746171038434,-1000.0,0.00018499,2]
[359592148,1746171038443,-1000.0,0.00018499,2]
[359592150,1746171038452,-1000.0,0.00018499,2]
[359592152,1746171038461,-1000.0,0.00018499,2]
[359592154,1746171038471,-672.14176186,0.00018499,2]
[359592156,1746171038480,-94617.94527206,0.000185,2]
[359592616,1746171043179,-10968.50853055,0.000185,2]
[359592617,1746171043189,-11017.35270272,0.0001856,2]
[359592618,1746171043201,-4210.41601,0.0001856,2]
[359592619,1746171043212,-14898.35246654,0.0001856,2]
[359592620,1746171043293,-67947.49710466,0.0001856,2]
[359592917,1746171046308,-7287.69041086,0.0001856,2]
[359593113,1746171515507,250.0,0.00025,30]
[359593114,1746171516711,7000.0,0.000181,2]
[359593120,1746171710813,252.5,0.00025,30]
[359593133,1746171841153,65971.46752505,0.00018,2]
[359593137,1746171841445,1800.0,0.00018,2]
[359593139,1746171841473,150000.0,0.00018,2]
[359593140,1746171841496,6339.91021021,0.00018,2]
[359593297,1746172238371,-1000.0,0.00018295,2]
[359593298,1746172238380,-819.4,0.00018346,2]
[359593299,1746172238391,-221.85852285,0.00018346,2]
[359593300,1746172238401,-372.10571924,0.0001836,2]
[359593301,1746172238410,-300.0,0.00018439,2]
[359593302,1746172238419,-300.0,0.00018439,2]
[359593303,1746172238428,-162.08692342,0.00018439,2]
[359593305,1746172238440,-1037.91307658,0.00018439,2]
[359593307,1746172238450,-1177.09,0.0001844,3]
[359593309,1746172238460,-588.54,0.0001844,3]
[359593311,1746172238469,-294.27,0.0001844,3]
[359593313,1746172238478,-882.86,0.0001844,3]
[359593315,1746172238488,-165915.22,0.0001845,2]
[359593318,1746172238497,-122094.40003325,0.0001846,2]
[359593563,1746172240857,-11093.65638401,0.0001846,2]
[359593874,1746172243935,-500.0,0.00018445,2]
[359593876,1746172243945,-500.0,0.00018445,2]
[359593878,1746172243955,-500.0,0.00018445,2]
[359593880,1746172243964,-500.0,0.00018445,2]
[359593882,1746172243973,-500.0,0.00018445,2]
[359593884,1746172243983,-500.0,0.00018445,2]
[359593886,1746172243992,-500.0,0.00018445,2]
[359593888,1746172244002,-500.0,0.00018445,2]
[359593890,1746172244011,-500.0,0.00018445,2]
[359593892,1746172244020,-500.0,0.00018445,2]
[359593894,1746172244030,-500.0,0.00018445,2]
[359593896,1746172244039,-500.0,0.00018445,2]
[359593898,1746172244048,-250.0,0.00018445,2]
[359593900,1746172244057,-243.75586875,0.00018445,2]
[359593902,1746172244066,-500.0,0.00018445,2]
[359593904,1746172244076,-500.0,0.00018445,2]
[359593906,1746172244086,-500.0,0.00018445,2]
[359593908,1746172244095,-500.0,0.00018445,2]
[359593910,1746172244106,-500.0,0.00018445,2]
[359593912,1746172244117,-500.0,0.00018445,2]
[359593914,1746172244126,-500.0,0.00018445,2]
[359593916,1746172244136,-500.0,0.00018445,2]
[359593918,1746172244146,-500.0,0.00018445,2]
[359593920,1746172244156,-287.8937923,0.00018445,2]
[359594247,1746172277126,502.2074722,0.00017496,2]
[359594248,1746172317050,4882.25579219,0.00025,30]
[359594249,1746172450895,18157.88231759,0.00018,2]
[359594250,1746172451479,-539.84020098,0.00018,2]
[359594251,1746172461353,-45069.0,0.00018,2]
[359594252,1746172465403,-177.41597393,0.00018,2]
[359594253,1746172471820,-177.41597393,0.00018,2]
[359594254,1746172478371,-309.48977497,0.00018,2]
[359594255,1746172485618,-500.0,0.00018,2]
[359594256,1746172490450,-420.0,0.00018,2]
[359594257,1746172495202,-164.67236682,0.00018,2]
[359594258,1746172499582,-279.4705777,0.00018,2]
[359594259,1746172502416,300.0,0.00017999,2]
[359594260,1746172506349,-328.72062478,0.00018,2]
[359594261,1746172506831,788.0,0.00017999,2]
[359594262,1746172513129,-299.66883333,0.00018,2]